bitfinex/quotes_ETHUSD_20260129
["timestamp","ask_amount","ask_price","bid_price","bid_amount"]
[1769649959189,0.04986785,2991.9,2991.3,0.83575702]
[1769649959393,0.04986785,2991.3,2989.7,6.1208975]
[1769649959687,0.04986785,2992.1,2989.4,7.239725]
[1769649959688,0.04986785,2992.1,2991.2,0.8357832]
[1769649959895,7.28959285,2993.2,2991.2,0.8357832]
[1769649959896,2.69387719,2992.8,2991.2,0.8357832]
[1769649960072,0.04986785,2991.9,2990.3,3.34413941]
[1769649960269,0.04986785,2991.3,2990.4,0.33441394]
[1769649960480,0.04986785,2991.3,2990.2,3.6121781]
[1769649960684,0.04986785,2992.4,2990.3,2.77611363]
[1769649960885,0.04986785,2993.1,2990.7,2.77611363]
[1769649961074,0.04986785,2993.1,2990.6,7.239725]
[1769649961075,0.04986785,2993.2,2991.2,2.77611363]
[1769649961263,0.04986785,2993.0,2991.2,2.77611363]
[1769649961461,0.04986785,2993.0,2991.3,0.27761136]
[1769649961462,0.04986785,2992.8,2991.3,0.27761136]
[1769649961706,0.04986785,2992.2,2991.3,0.27761136]
[1769649962008,2.69387719,2992.6,2990.8,2.77611363]
[1769649962009,0.04986785,2992.3,2990.8,2.77611363]
[1769649962159,0.04986785,2992.3,2990.9,0.8358688]
[1769649962962,0.04986785,2992.8,2991.0,2.77611363]
[1769649963158,0.04986785,2992.8,2991.1,0.36119824]
[1769649963159,0.04986785,2992.1,2991.1,0.36119824]
[1769649963391,0.04986785,2992.3,2990.9,0.8358688]
[1769649963566,0.04986785,2992.5,2990.9,0.8358688]
[1769649963976,0.04986785,2992.3,2990.9,0.8358688]
[1769649964171,0.04986785,2992.1,2990.8,3.3434752]
[1769649964401,0.04986785,2991.5,2990.9,0.66870259]
[1769649964582,0.04986785,2991.3,2990.7,0.83592469]
[1769649964902,0.04986785,2991.9,2990.7,0.83592469]
[1769649965221,0.04986785,2992.3,2990.8,0.41797285]
[1769649965405,2.64400934,2992.9,2991.1,2.77811363]
[1769649965627,0.04986785,2993.2,2991.1,2.77811363]
[1769649965789,0.04986785,2993.0,2991.1,2.72811363]
[1769649965983,0.04986785,2992.8,2991.1,2.72811363]
[1769649966186,2.64400934,2992.3,2991.3,0.83575702]
[1769649966523,0.04986785,2992.4,2991.3,0.83575702]
[1769649966691,0.04986785,2992.6,2991.3,0.83575702]
[1769649967116,0.04986785,2992.8,2991.3,0.83575702]
[1769649967278,2.64400934,2993.1,2991.4,0.44515965]
[1769649967483,0.04986785,2993.0,2991.4,0.44515965]
[1769649967884,0.04986785,2992.4,2991.4,0.44515965]
[1769649968086,0.04986785,2992.5,2991.4,0.44515965]
[1769649968502,0.04986785,2993.0,2991.5,0.83570115]
[1769649968503,0.04986785,2992.4,2991.5,0.83570115]
[1769649968818,0.04986785,2992.6,2991.6,0.46236654]
[1769649969317,0.04986785,2993.0,2991.6,0.46236654]
[1769649969503,0.04986785,2992.6,2991.6,0.46236654]
[1769649970289,0.04986785,2992.8,2991.6,0.46236654]
[1769649970484,0.04986785,2992.8,2991.7,0.83564528]
[1769649970685,0.04986785,2993.0,2991.8,0.4640593]
[1769649970889,0.04986785,2992.6,2991.8,0.4640593]
[1769649971085,0.04986785,2992.6,2991.8,0.42921807]
[1769649971401,0.04986785,2992.8,2991.8,0.42921807]
[1769649971785,0.04986785,2993.2,2991.8,0.42921807]
[1769649972000,0.04986785,2993.0,2991.8,0.42921807]
[1769649972485,0.88508849,2993.3,2991.9,0.83558942]
[1769649972685,0.04986785,2993.1,2991.9,0.83558942]
[1769649972986,0.04986785,2993.2,2991.9,0.83558942]
[1769649973321,0.04986785,2993.1,2992.0,0.46071652]
[1769649973815,3.47911435,2993.7,2992.0,0.46071652]
[1769649973816,0.04986785,2993.7,2992.0,3.23683015]
[1769649974119,0.04986785,2994.2,2992.1,2.77611363]
[1769649974416,0.04986785,2994.2,2992.2,1.04765552]
[1769649974417,0.04986785,2993.4,2992.2,1.04765552]
[1769649974616,0.88499944,2993.6,2992.3,0.83547772]
[1769649974782,0.04986785,2993.4,2992.3,0.83547772]
[1769649975118,0.88499944,2993.6,2992.3,0.83547772]
[1769649975119,0.04986785,2993.7,2992.4,2.77611363]
[1769649975317,0.04986785,2993.7,2992.3,0.83547772]
[1769649975318,0.04986785,2993.5,2992.5,0.36115914]
[1769649975492,0.04986785,2993.5,2992.3,0.83547772]
[1769649975821,2.69387719,2993.7,2992.3,0.83547772]
[1769649976420,0.04986785,2994.0,2992.3,0.83547772]
[1769649976611,0.88487119,2994.0,2992.5,0.83542188]
[1769649977332,2.64400934,2994.1,2992.5,0.83542188]
[1769649977495,0.04986785,2993.6,2992.6,0.69532231]
[1769649977833,0.04986785,2993.5,2992.5,0.83542188]
[1769649978029,2.64400934,2993.8,2992.5,0.83542188]
[1769649978189,0.001,2993.3,2992.5,0.83542188]
[1769649978697,0.001,2993.3,2992.4,3.34168755]
[1769649978698,0.001,2993.3,2992.4,2.77611363]
[1769649979202,0.001,2993.3,2992.2,3.29168755]
[1769649979389,0.001,2993.3,2992.3,0.41272211]
[1769649980215,0.001,2993.3,2992.3,3.18883574]
[1769649980649,0.001,2993.3,2992.4,0.8354498]
[1769649980820,0.001,2993.3,2992.4,3.61156343]
[1769649981725,0.001,2993.3,2992.4,0.8354498]
[1769649982321,0.001,2993.3,2992.0,0.46071652]
[1769649982322,2.69387719,2993.2,2992.0,0.46071652]
[1769649982526,0.04986785,2993.0,2992.2,0.83550418]
[1769649982726,3.47937539,2992.7,2991.1,0.002]
[1769649982894,0.7369386,2992.6,2991.1,0.002]
[1769649983301,0.68707075,2992.6,2991.1,0.002]
[1769649983496,0.68707075,2992.6,2991.1,2.77811363]
[1769649983703,0.04986785,2992.8,2991.1,2.77811363]
[1769649984331,0.83530318,2993.0,2991.1,2.77811363]
[1769649984626,2.64400934,2992.8,2991.1,2.77811363]
[1769649984826,2.64400934,2992.2,2991.1,0.002]
[1769649985150,0.04986785,2991.9,2991.1,0.002]
[1769649985432,0.04986785,2991.5,2990.9,0.002]
[1769649986002,2.68725706,2991.7,2990.9,0.002]
[1769649986434,0.04986785,2992.5,2990.9,0.002]
[1769649986608,2.68725706,2992.6,2990.9,0.002]
[1769649986808,0.04986785,2992.4,2990.9,0.002]
[1769649987022,0.88526381,2992.6,2990.9,2.53176124]
[1769649987221,0.83539596,2992.6,2991.0,2.86652668]
[1769649987427,0.88526381,2992.6,2991.0,2.86652668]
[1769649987619,0.83542188,2992.5,2991.0,2.86652668]
[1769649988021,0.8852666,2992.6,2991.0,2.86652668]
[1769649988221,0.04986785,2992.2,2991.0,0.33676544]
[1769649988418,0.04986785,2992.1,2990.9,0.002]
[1769649988646,2.48266019,2992.4,2990.9,0.002]
[1769649988828,3.26825383,2992.4,2990.9,0.002]
[1769649989033,2.43279234,2992.4,2990.9,0.002]
[1769649989233,0.83546363,2992.4,2990.9,0.002]
[1769649989428,0.83546363,2992.4,2990.9,0.33656873]
[1769649989744,0.83543151,2992.5,2991.1,0.002]
[1769649990251,0.88529936,2992.5,2991.1,0.002]
[1769649990418,0.04986785,2992.1,2991.1,0.002]
[1769649990740,2.43279234,2992.3,2991.1,0.002]
[1769649990907,0.83541456,2992.6,2991.1,2.47039703]
[1769649991112,1.09978692,2992.7,2991.2,0.33062379]
[1769649992642,0.26440093,2992.7,2991.2,2.79902082]
[1769649992829,0.83533063,2992.9,2991.2,2.79902082]
[1769649993018,0.83533063,2992.9,2991.3,0.83575702]
[1769649993214,2.48266019,2992.6,2991.3,0.83575702]
[1769649993431,0.04986785,2992.2,2991.3,0.83575702]
[1769649993625,0.04986785,2992.2,2991.3,0.45114089]
[1769649993840,0.04986785,2992.2,2991.2,0.83576999]
[1769649994046,0.04986785,2992.4,2991.2,0.83576999]
[1769649995928,0.83547772,2992.3,2991.1,0.002]
[1769649996249,2.48266019,2992.6,2991.1,0.002]
[1769649996456,0.83542188,2992.5,2991.1,0.002]
[1769649996629,1.50137906,2992.5,2991.2,0.58135369]
[1769649997645,0.66595718,2992.5,2991.2,0.58135369]
[1769649997849,0.83541416,2992.6,2991.2,0.58135369]
[1769649998203,0.001,2993.1,2991.4,2.46839703]
[1769649998468,0.04986785,2993.0,2991.4,2.46839703]
[1769649998650,0.04986785,2992.8,2991.4,2.46839703]
[1769649998847,0.04986785,2992.8,2991.3,0.83575702]
[1769649998848,2.48266019,2992.8,2991.3,0.83575702]
[1769649999161,0.83625651,2993.1,2991.4,2.94441091]
[1769649999528,0.04986785,2993.0,2991.4,2.94441091]
[1769649999966,0.001,2993.1,2991.4,2.94441091]
[1769650000138,0.001,2993.1,2991.6,2.46839703]
[1769650000529,2.43379234,2993.1,2991.5,0.83570115]
[1769650000864,2.43279234,2992.9,2991.6,0.46545196]
[1769650001030,0.24337923,2993.0,2991.6,0.46545196]
[1769650001238,0.001,2992.9,2991.6,2.93384899]
[1769650002760,0.001,2992.9,2991.7,0.83564528]
[1769650003962,0.001,2992.9,2991.8,2.46839703]
[1769650005455,0.001,2992.9,2991.9,0.83558942]
[1769650009276,0.001,2992.9,2991.9,3.30398645]
[1769650009478,0.001,2992.9,2992.0,0.66463441]
[1769650009677,0.001,2992.9,2992.1,0.83553357]
[1769650012781,0.001,2992.7,2992.1,0.83553357]
[1769650013079,0.001,2992.7,2992.0,0.83554089]
[1769650013478,2.43379234,2992.7,2992.0,0.83554089]
[1769650013697,0.24836602,2992.6,2992.0,0.83554089]
[1769650013855,0.24836602,2992.6,2992.0,0.83555562]
[1769650014254,0.24836602,2992.6,2991.9,0.83557008]
[1769650014555,0.24836602,2992.6,2991.7,0.83564528]
[1769650015269,3.63369787,2992.6,2991.7,0.83564528]
[1769650015483,0.36346979,2992.5,2991.7,0.83564528]
[1769650015690,2.91340668,2992.5,2991.6,0.83565828]
[1769650015858,2.91340668,2992.5,2991.6,0.83566755]
[1769650016450,3.38538669,2992.4,2991.1,0.002]
[1769650016656,2.54993689,2992.3,2991.1,0.002]
[1769650018587,2.54993689,2992.1,2991.1,0.002]
[1769650019869,2.54993689,2991.9,2991.1,0.002]
[1769650020893,2.54993689,2991.7,2991.1,0.002]
[1769650021889,2.59980474,2991.7,2990.9,0.002]
[1769650022090,2.59980474,2991.7,2989.3,11.2007746]
[1769650022091,2.54993689,2991.0,2989.4,3.34512682]
[1769650022294,2.54993689,2990.5,2988.6,2.56441604]
[1769650022481,2.54993689,2990.5,2987.8,4.15672558]
[1769650022482,2.54993689,2988.8,2987.4,6.3263391]
[1769650022680,0.04986785,2989.1,2987.4,0.83683357]
[1769650022681,2.54993689,2989.1,2987.4,0.83683357]
[1769650022880,0.1024,2990.2,2987.4,0.83683357]
[1769650022881,2.54993689,2989.9,2987.9,2.56441604]
[1769650023095,0.25499369,2989.8,2988.1,2.56441604]
[1769650023393,2.54993689,2989.9,2988.1,2.56441604]
[1769650023605,2.54993689,2990.9,2988.7,2.56441604]
[1769650023762,2.54659689,2991.2,2988.9,2.61428389]
[1769650023957,2.54659689,2991.2,2989.0,2.56441604]
[1769650024159,2.54993689,2990.8,2988.5,2.56441604]
[1769650024359,2.54993689,2990.6,2988.6,0.2564416]
[1769650024668,2.54993689,2990.6,2988.2,0.04986785]
[1769650024669,2.54993689,2990.4,2988.2,0.04986785]
[1769650024886,2.54993689,2990.4,2988.3,0.83659605]
[1769650025262,0.83600856,2990.4,2988.3,0.83659605]
[1769650025463,2.54993689,2990.3,2988.4,2.56441604]
[1769650025662,30.0,2990.8,2988.4,2.61428389]
[1769650025885,2.59980474,2990.7,2988.5,0.34508799]
[1769650026291,2.54993689,2990.4,2988.5,0.34508799]
[1769650026562,2.52628669,2990.4,2988.4,2.56441604]
[1769650027170,2.52628669,2990.4,2988.6,2.56441604]
[1769650028005,2.54993689,2990.8,2988.6,2.56441604]
[1769650028225,0.04986785,2991.0,2988.9,2.56441604]
[1769650028367,2.80991736,2990.9,2989.0,1.04199331]
[1769650028574,2.80991736,2990.9,2988.9,2.56441604]
[1769650028774,2.54993689,2990.7,2988.5,0.83654007]
[1769650029093,2.54993689,2990.7,2988.5,3.40095611]
[1769650029315,2.54993689,2990.7,2988.8,2.56441604]
[1769650029606,3.38586627,2990.7,2988.8,2.56441604]
[1769650029771,2.54993689,2990.6,2988.9,0.34009001]
[1769650029972,2.54993689,2990.6,2988.7,0.83648409]
[1769650029973,2.59980474,2990.2,2988.7,0.83648409]
[1769650030274,2.59980474,2990.2,2988.0,0.26142839]
[1769650030275,0.04986785,2989.6,2988.6,0.83649376]
[1769650030598,2.54993689,2989.7,2988.6,0.83649376]
[1769650031316,3.38614987,2989.7,2987.8,3.34687735]
[1769650031515,2.54993689,2989.7,2987.9,2.56441604]
[1769650031669,2.54993689,2990.0,2987.9,2.56441604]
[1769650031870,2.59980474,2989.6,2988.0,0.59112934]
[1769650032096,2.59980474,2988.7,2987.0,0.0208493]
[1769650032294,2.59980474,2988.7,2987.7,0.83676102]
[1769650032295,2.54993689,2988.3,2987.7,0.83676102]
[1769650032493,2.54993689,2989.4,2987.7,0.83675994]
[1769650032731,0.33860476,2989.9,2987.8,2.56441604]
[1769650032936,2.54993689,2990.1,2988.0,2.56441604]
[1769650033098,2.59980474,2989.8,2987.9,0.3401176]
[1769650033303,2.54993689,2989.7,2987.6,5.9114723]
[1769650033498,2.54993689,2989.7,2987.6,3.34705626]
[1769650033499,2.54993689,2989.0,2987.6,3.34705626]
[1769650033723,2.59980474,2988.9,2987.6,0.83679207]
[1769650033923,2.54993689,2988.7,2987.7,0.41840528]
[1769650034310,2.54993689,2989.1,2987.7,0.41840528]
[1769650034499,2.54993689,2988.9,2987.7,0.41840528]
[1769650034702,2.80991736,2988.9,2987.7,0.41840528]
[1769650034902,2.54993689,2989.5,2987.7,0.41840528]
[1769650035136,2.59980474,2989.4,2987.7,0.41840528]
[1769650035314,0.83631619,2989.3,2987.8,0.83673605]
[1769650035514,2.54993689,2989.4,2987.8,0.83673605]
[1769650035718,2.80991736,2989.4,2988.0,0.002]
[1769650036003,2.54993689,2989.9,2988.0,2.56641604]
[1769650036530,3.38609328,2989.9,2988.0,2.56641604]
[1769650037505,3.38609328,2989.9,2988.1,0.83665205]
[1769650037706,0.33860933,2989.8,2988.2,0.67496763]
[1769650038307,0.04986785,2989.4,2988.2,0.67496763]
[1769650038607,0.04986785,2989.4,2988.0,3.34860821]
[1769650038608,0.04986785,2989.0,2988.0,0.83867195]
[1769650039237,2.59980474,2989.2,2988.0,0.83867195]
[1769650039441,0.83637215,2989.1,2988.0,0.83867195]
[1769650040213,0.04986785,2989.0,2988.0,0.83867195]
[1769650040445,0.83637215,2989.1,2988.0,0.83867195]
[1769650040644,0.67815536,2989.0,2988.0,1.30344257]
[1769650041010,0.67815536,2989.0,2988.0,0.83867195]
[1769650041215,2.54993689,2988.7,2988.0,0.002]
[1769650041437,2.54993689,2988.7,2987.8,0.002]
[1769650041712,2.54993689,2988.5,2987.8,0.002]
[1769650041913,3.22318266,2988.5,2987.8,0.002]
[1769650042347,2.59980474,2988.0,2987.0,0.0208493]
[1769650043142,2.54993689,2987.8,2987.0,0.0208493]
[1769650043323,2.54993689,2987.8,2987.1,0.83693214]
[1769650043324,0.25998047,2987.8,2987.1,0.83693214]
[1769650043526,2.54993689,2988.1,2987.1,0.83693214]
[1769650043719,2.54993689,2988.1,2987.0,0.0208493]
[1769650043720,2.54993689,2987.9,2987.0,0.0208493]
[1769650043919,2.54993689,2987.9,2987.0,0.85780561]
[1769650044235,3.3866056,2988.1,2987.0,0.85780561]
[1769650044430,3.3866056,2988.1,2987.0,0.0208493]
[1769650044942,2.54993689,2987.9,2987.0,0.0208493]
[1769650045813,0.83673605,2987.8,2987.0,0.0208493]
[1769650046014,0.83668005,2988.0,2987.0,0.0208493]
[1769650046243,2.42875574,2988.1,2987.0,0.0208493]
[1769650047313,0.8864919,2988.2,2987.0,0.0208493]
[1769650047314,2.42875574,2987.7,2987.0,0.0208493]
[1769650047518,2.47862359,2987.4,2986.6,0.002]
[1769650047744,0.83686047,2987.4,2986.6,0.002]
[1769650047946,2.42875574,2987.8,2986.6,0.002]
[1769650048118,2.42875574,2987.8,2987.2,0.002]
[1769650048119,0.83675403,2987.8,2987.2,0.002]
[1769650048715,3.35649793,2987.8,2987.2,0.002]
[1769650048921,3.35649793,2987.8,2987.0,0.002]
[1769650049246,3.30663008,2987.8,2987.0,0.002]
[1769650049446,0.83675403,2987.8,2987.0,0.002]
[1769650050322,3.34694423,2987.9,2987.0,0.002]
[1769650050522,0.04986785,2987.8,2987.0,0.002]
[1769650050723,5.86668813,2987.9,2987.0,0.002]
[1769650051154,2.5197439,2987.7,2987.0,0.002]
[1769650051458,2.46987605,2987.7,2987.0,0.002]
[1769650052260,0.83663937,2988.2,2987.0,0.002]
[1769650052421,1.53752218,2988.6,2987.0,2.3685483]
[1769650052626,0.8364561,2988.8,2987.1,2.60340313]
[1769650052929,0.8364561,2988.8,2987.1,0.23685483]
[1769650052930,0.04986785,2988.5,2987.1,0.23685483]
[1769650053248,0.04986785,2988.1,2987.0,0.002]
[1769650053433,0.04986785,2987.9,2987.0,0.002]
[1769650053838,2.46987605,2988.3,2987.0,0.002]
[1769650054156,0.04986785,2988.5,2987.0,0.002]
[1769650054372,0.04986785,2987.8,2987.1,0.23685483]
[1769650054655,0.83665205,2988.1,2987.0,0.002]
[1769650055057,3.39583795,2988.7,2987.0,0.002]
[1769650055058,0.83661548,2988.3,2987.0,0.002]
[1769650055365,0.88635194,2988.7,2987.0,2.3685483]
[1769650055580,0.83648409,2988.7,2987.0,2.3685483]
[1769650055852,0.04986785,2988.6,2987.1,0.32055286]
[1769650056054,0.83648409,2988.7,2987.1,0.32055286]
[1769650056459,0.83648409,2988.7,2987.2,0.83690412]
[1769650057931,0.001,2988.9,2987.3,2.3665483]
[1769650058281,0.8873106,2988.9,2987.4,0.32034524]
[1769650058432,0.001,2988.9,2987.5,0.83682008]
[1769650058759,0.001,2988.9,2987.4,1.15717781]
[1769650058760,0.05086785,2988.9,2987.4,1.15717781]
[1769650059059,0.001,2988.9,2987.5,2.3665483]
[1769650059262,0.001,2988.9,2987.6,0.35237261]
[1769650060570,0.001,2988.9,2987.7,0.83676406]
[1769650061131,0.001,2988.9,2987.8,2.3665483]
[1769650061431,0.001,2988.9,2987.7,0.83676406]
[1769650062165,0.001,2988.9,2987.8,2.3665483]
[1769650062460,0.83627893,2989.5,2988.0,2.3665483]
[1769650062652,2.46987605,2989.8,2988.2,2.3665483]
[1769650063026,0.83614836,2989.9,2988.2,2.3665483]
[1769650063449,3.30602441,2989.9,2988.2,2.3665483]
[1769650063650,0.67004857,2989.8,2988.3,0.32032004]
[1769650064259,0.67004857,2989.8,2988.3,2.68686834]
[1769650064428,0.71991642,2989.8,2988.3,2.68686834]
[1769650064633,0.8362043,2989.7,2988.3,3.52343873]
[1769650064829,0.04986785,2989.6,2988.3,1.15689043]
[1769650065062,0.54494843,2989.6,2988.4,0.45033676]
[1769650065559,2.46987605,2989.3,2988.4,0.45033676]
[1769650065733,2.5197439,2989.2,2987.9,0.83668467]
[1769650065941,2.5197439,2989.2,2988.1,0.836651]
[1769650066566,0.83637215,2989.1,2987.7,0.83676406]
[1769650066955,0.83637215,2989.1,2987.7,3.20331236]
[1769650067274,0.83637215,2989.1,2987.8,0.69027412]
[1769650067874,0.83636009,2989.2,2987.8,3.05682242]
[1769650068046,0.83632666,2989.3,2987.9,2.3665483]
[1769650068458,3.13992462,2989.8,2987.9,2.3665483]
[1769650068459,0.83626024,2989.5,2987.9,2.3665483]
[1769650068651,0.83626024,2989.5,2988.0,0.30568224]
[1769650068853,3.30613629,2989.5,2988.1,0.83665205]
[1769650070142,0.49508058,2989.6,2988.1,0.83665205]
[1769650070344,2.46987605,2990.3,2988.2,2.3665483]
[1769650070546,0.83701483,2990.4,2988.3,2.3665483]
[1769650070851,0.001,2990.4,2988.5,2.3665483]
[1769650071050,0.001,2990.4,2988.7,2.3665483]
[1769650071783,2.46987605,2991.1,2989.1,2.3665483]
[1769650072076,2.46987605,2991.0,2989.1,2.3665483]
[1769650072375,0.33056911,2990.9,2989.2,2.61344313]
[1769650072879,0.33056911,2990.9,2989.4,2.3665483]
[1769650073094,0.83580133,2991.2,2989.4,2.3665483]
[1769650073383,3.30561843,2991.4,2989.4,2.3665483]
[1769650073588,5.81231207,2991.9,2989.4,2.3665483]
[1769650073789,0.83561735,2991.8,2989.8,2.3665483]
[1769650073989,0.66479294,2991.7,2990.0,2.3665483]
[1769650074290,3.30547976,2991.9,2989.3,0.83631619]
[1769650074291,2.5197439,2991.1,2989.3,0.83631619]
[1769650074872,2.46987605,2991.1,2989.3,0.83631619]
[1769650075103,2.31367828,2991.5,2989.5,2.2296429]
[1769650075305,2.65791816,2991.5,2989.7,2.2296429]
[1769650075589,0.34423988,2991.5,2989.7,2.2296429]
[1769650075895,3.14927767,2991.9,2989.7,2.2296429]
[1769650076464,3.14927767,2991.9,2989.9,2.2296429]
[1769650076657,2.31367828,2991.8,2989.9,2.2296429]
[1769650076874,0.83564528,2991.7,2990.0,0.8361204]
[1769650077080,2.31367828,2991.6,2990.1,0.64102449]
[1769650077471,2.31367828,2992.0,2990.2,2.2296429]
[1769650077673,2.31367828,2992.5,2990.5,2.2296429]
[1769650077874,0.001,2992.7,2990.9,9.5010811]
[1769650078165,0.001,2992.7,2991.0,2.2296429]
[1769650078366,0.23256783,2992.7,2991.2,2.2296429]
[1769650078768,0.001,2992.7,2991.2,2.2296429]
[1769650078998,0.001,2992.7,2991.4,9.5010811]
[1769650079291,0.001,2992.7,2991.5,2.2296429]
[1769650080789,0.001,2992.7,2991.3,0.83575702]
[1769650080790,2.31467828,2992.7,2991.3,0.83575702]
[1769650081001,2.31367828,2992.4,2990.7,3.34364603]
[1769650081794,0.23146783,2992.6,2990.9,9.5010811]
[1769650082124,1.06686607,2992.6,2990.9,9.5010811]
[1769650082282,1.06686607,2992.6,2990.9,2.2296429]
[1769650082482,0.44094141,2992.5,2991.0,0.29296429]
[1769650083119,0.44094141,2992.5,2991.1,0.83581291]
[1769650084014,1.06686607,2992.6,2991.1,0.83581291]
[1769650084227,0.23146783,2992.6,2991.1,0.83581291]
[1769650084727,2.31367828,2992.6,2991.1,0.83581291]
[1769650085094,0.001,2992.7,2991.1,3.06545581]
[1769650085299,0.001,2992.7,2991.2,2.2296429]
[1769650085816,0.001,2992.4,2991.2,2.2296429]
[1769650086016,0.001,2992.4,2991.1,0.83581291]
[1769650086213,0.001,2992.4,2991.2,0.67016717]
[1769650086413,2.31467828,2992.4,2991.1,0.83581291]
[1769650087419,3.15013521,2992.4,2990.9,3.34325164]
[1769650087921,2.36354613,2992.3,2990.9,3.34325164]
[1769650088532,2.31367828,2992.3,2990.8,3.34325164]
[1769650088714,2.31367828,2992.3,2990.8,0.83589675]
[1769650088715,2.36354613,2992.1,2990.8,0.83589675]
[1769650088902,2.31367828,2991.8,2990.8,0.83589675]
[1769650089414,2.31367828,2991.8,2990.2,0.83606447]
[1769650089600,0.23136783,2991.7,2990.3,0.48213469]
[1769650091811,0.23136783,2991.7,2990.4,0.83600856]
[1769650092125,3.46920614,2992.2,2990.4,0.83600856]
[1769650093124,1.15552786,2992.2,2990.4,0.83600856]
[1769650093334,2.31367828,2992.1,2990.4,0.83600856]
[1769650093634,2.36354613,2992.1,2990.4,0.83600856]
[1769650093815,2.31367828,2991.8,2990.6,0.83595265]
[1769650095213,0.3519074,2992.0,2990.6,0.83595265]
[1769650097543,2.31367828,2991.9,2990.6,0.83595265]
[1769650098328,3.14926953,2991.9,2990.6,0.83595265]
[1769650098537,0.35011769,2991.8,2990.7,0.4645981]
[1769650099242,0.83554614,2992.1,2990.7,0.4645981]
[1769650099536,3.14922442,2992.1,2990.7,0.4645981]
[1769650100310,3.14922442,2992.1,2990.8,0.83589675]
[1769650100504,2.31367828,2992.1,2990.8,0.83589675]
[1769650100748,3.14921531,2992.1,2990.8,0.83589675]
[1769650101039,0.31492153,2992.0,2990.8,1.63466364]
[1769650102824,0.001,2992.4,2990.9,2.2296429]
[1769650103033,2.31467828,2992.4,2990.9,2.2296429]
[1769650103343,2.31367828,2992.3,2990.9,2.2296429]
[1769650104609,2.31367828,2992.3,2991.0,0.83584085]
[1769650105242,0.001,2992.4,2991.1,2.36117489]
[1769650105546,0.001,2992.4,2991.2,2.68087646]
[1769650106216,0.83645188,2992.4,2991.2,0.31970157]
[1769650106415,3.17775704,2992.4,2991.0,0.83584085]
[1769650107168,0.001,2992.7,2991.7,2.36117489]
[1769650107352,2.34230516,2992.7,2991.2,2.36117489]
[1769650109747,0.001,2992.5,2991.3,3.09781653]
[1769650109944,0.001,2992.5,2991.4,0.64408446]
[1769650110144,0.001,2992.5,2991.5,2.26205951]
[1769650110523,0.001,2992.5,2991.7,2.26205951]
[1769650110731,0.001,2992.5,2991.8,0.29620595]
[1769650110931,0.001,2992.7,2991.8,2.55826546]
[1769650111641,0.001,2992.7,2991.9,0.83558942]
[1769650112351,0.001,2992.7,2991.9,3.09764893]
[1769650112555,0.001,2992.7,2991.9,0.83558942]
[1769650112728,0.001,2992.9,2992.0,2.70947482]
[1769650113137,2.25383708,2992.9,2992.0,0.44741531]
[1769650113343,2.25383708,2992.9,2991.9,0.83558942]
[1769650114056,0.001,2992.9,2991.9,0.83558942]
[1769650114754,2.25383708,2992.9,2991.9,0.83558942]
[1769650115856,0.001,2992.9,2991.9,0.83558942]
[1769650116445,0.001,2992.9,2991.9,3.09764893]
[1769650116669,0.001,2992.9,2992.0,0.67362509]
[1769650117561,0.001,2992.9,2992.1,0.83553357]
[1769650118448,2.25383708,2992.9,2992.1,0.83553357]
[1769650121292,2.25383708,2992.9,2992.1,0.83753357]
[1769650121459,0.001,2992.7,2992.1,0.83753357]
[1769650121773,0.001,2992.7,2992.1,1.65707629]
[1769650127590,0.001,2992.7,2992.1,3.9191358]
[1769650128193,0.001,2992.7,2992.1,1.65707629]
[1769650129877,0.001,2992.9,2992.1,1.65707629]
[1769650130211,0.001,2993.1,2992.2,2.26205951]
[1769650130507,0.001,2993.1,2992.3,0.39191358]
[1769650130720,2.25283708,2993.9,2992.4,2.26205951]
[1769650131016,2.25283708,2994.2,2992.6,2.26205951]
[1769650131227,2.25283708,2994.2,2992.8,3.09739765]
[1769650132031,2.25283708,2994.2,2992.9,2.26205951]
[1769650133215,2.25283708,2994.5,2993.0,3.09734183]
[1769650133418,2.25283708,2994.5,2993.1,0.7]
[1769650133621,2.25283708,2994.5,2993.2,0.37973418]
[1769650134120,2.25283708,2994.5,2993.0,1.53528232]
[1769650135418,0.001,2994.3,2993.0,1.53528232]
[1769650135620,0.001,2994.3,2993.1,2.15399917]
[1769650137510,0.001,2994.3,2993.2,0.83522651]
[1769650138508,2.23934706,2994.8,2993.3,2.15399917]
[1769650138713,2.23934706,2994.8,2993.3,2.57161243]
[1769650139623,2.23934706,2994.8,2993.4,0.8351707]
[1769650139806,3.07412975,2994.8,2993.4,2.98916987]
[1769650140608,2.23934706,2994.8,2993.4,2.98916987]
[1769650140928,2.23934706,2995.2,2993.7,2.15399917]
[1769650141229,2.23934706,2995.2,2993.8,0.7]
[1769650141916,2.23934706,2995.0,2993.9,0.83503123]
[1769650143927,2.23934706,2995.0,2993.7,3.34012492]
[1769650144127,2.23934706,2994.9,2993.7,3.34012492]
[1769650144328,2.23934706,2994.9,2993.8,0.41752398]
[1769650144499,2.23934706,2994.9,2993.6,0.83511491]
[1769650146502,2.23934706,2994.9,2993.6,2.98911408]
[1769650146704,0.83469164,2995.2,2993.7,2.15399917]
[1769650146904,2.23934706,2995.7,2993.8,2.15399917]
[1769650147099,3.51354069,2995.7,2994.0,2.15399917]
[1769650147503,2.23934706,2995.7,2994.0,2.15399917]
[1769650148233,2.23934706,2995.7,2994.2,2.15399917]
[1769650148431,2.23934706,2995.7,2994.4,2.15399917]
[1769650148727,2.23934706,2996.1,2994.4,2.15399917]
[1769650149304,2.23934706,2996.1,2994.4,2.20386702]
[1769650149505,2.23934706,2996.1,2994.6,2.15399917]
[1769650149710,2.23934706,2996.4,2994.6,2.15399917]
[1769650149907,3.07368573,2996.4,2994.6,2.15399917]
[1769650150123,3.07368968,2996.4,2994.6,2.20386702]
[1769650150333,3.07368968,2996.4,2994.8,2.15399917]
[1769650150530,2.23934706,2996.3,2994.9,0.29888073]
[1769650150836,2.23934706,2996.3,2994.7,0.83480816]
[1769650151236,2.23934706,2996.3,2994.7,2.98880733]
[1769650151532,2.23934706,2996.3,2994.8,0.7]
[1769650151945,2.23934706,2996.3,2994.9,2.15399917]
[1769650152123,0.6410831,2996.4,2994.9,2.15399917]
[1769650152308,2.23934706,2996.5,2995.1,0.83469667]
[1769650152509,2.23934706,2996.5,2995.2,2.15399917]
[1769650152862,2.23934706,2997.2,2995.3,2.15399917]
[1769650153169,2.23934706,2997.2,2995.2,7.89973898]
[1769650153170,2.23934706,2997.2,2995.8,2.15399917]
[1769650153441,0.001,2997.3,2996.0,2.15399917]
[1769650153608,2.23934706,2997.9,2996.3,2.15399917]
[1769650154217,2.23934706,2998.2,2996.3,2.15399917]
[1769650154423,3.0732085,2998.1,2996.4,2.9883337]
[1769650154619,3.0732085,2998.1,2996.5,2.66823246]
[1769650154820,2.23934706,2998.1,2996.5,2.66823246]